[Event "BPB Limburg Open 2019 Group A"]
[Site "Maastricht, Netherlands"]
[Date "2019.06.08"]
[Round "2.8"]
[White "Schoppen, Casper"]
[Black "Dambacher, Martijn"]
[Result "1-0"]
[TimeControl "2h + 15 sec/move"]
[WhiteFideId "1046730"]
[BlackFideId "1005030"]
[WhiteElo "2464"]
[BlackElo "2511"]

1. e4 {[%clk 02:00:24]} {[%emt 00:00:07]} c5 {[%clk 01:59:57]} {[%emt
00:00:32]} 2. Nf3 {[%clk 02:00:31]} {[%emt 00:00:07]} d6 {[%clk 02:00:04]}
{[%emt 00:00:07]} 3. d4 {[%clk 02:00:39]} {[%emt 00:00:08]} cxd4 {[%clk
02:00:14]} {[%emt 00:00:05]} 4. Nxd4 {[%clk 02:00:50]} {[%emt 00:00:04]} Nf6
{[%clk 02:00:17]} {[%emt 00:00:12]} 5. Nc3 {[%clk 02:00:58]} {[%emt 00:00:05]}
a6 {[%clk 02:00:24]} {[%emt 00:00:10]} 6. h3 {[%clk 01:54:59]} {[%emt
00:06:13]} e5 {[%clk 02:00:05]} {[%emt 00:00:35]} 7. Nde2 {[%clk 01:55:06]}
{[%emt 00:00:06]} b5 {[%clk 01:59:13]} {[%emt 00:01:09]} 8. g4 {[%clk
01:48:57]} {[%emt 00:06:23]} b4 {[%clk 01:58:45]} {[%emt 00:00:43]} 9. Nd5
{[%clk 01:48:57]} {[%emt 00:00:15]} Nxd5 {[%clk 01:58:43]} {[%emt 00:00:16]} 10.
Qxd5 {[%clk 01:45:34]} {[%emt 00:03:39]} Ra7 {[%clk 01:58:48]} {[%emt
00:00:11]} 11. Be3 {[%clk 01:44:41]} {[%emt 00:01:07]} Be6 {[%clk 01:58:25]}
{[%emt 00:00:38]} 12. Qd3 {[%clk 01:44:19]} {[%emt 00:00:38]} Rb7 {[%clk
01:54:56]} {[%emt 00:03:44]} 13. Bg2 {[%clk 01:32:28]} {[%emt 00:12:06]} Be7
{[%clk 01:50:57]} {[%emt 00:04:14]} 14. O-O {[%clk 01:23:10]} {[%emt 00:09:32]}
O-O {[%clk 01:27:25]} {[%emt 00:23:47]} 15. f4 {[%clk 01:20:22]} {[%emt
00:03:03]} Bd7 {[%clk 01:14:18]} {[%emt 00:13:23]} 16. Qd2 {[%clk 01:15:02]}
{[%emt 00:05:34]} Bb5 {[%clk 01:07:30]} {[%emt 00:07:04]} 17. Rfd1 {[%clk
01:12:28]} {[%emt 00:02:49]} Nc6 {[%clk 01:05:54]} {[%emt 00:01:51]} 18. b3
{[%clk 00:47:15]} {[%emt 00:25:27]} Bxe2 {[%clk 00:55:18]} {[%emt 00:10:51]} 19.
Qxe2 {[%clk 00:47:12]} {[%emt 00:00:19]} exf4 {[%clk 00:54:18]} {[%emt
00:01:15]} 20. Bxf4 {[%clk 00:43:57]} {[%emt 00:03:30]} Qb6+ {[%clk 00:47:35]}
{[%emt 00:06:58]} 21. Be3 {[%clk 00:42:33]} {[%emt 00:01:39]} Qb5 {[%clk
00:47:33]} {[%emt 00:00:17]} 22. Qxb5 {[%clk 00:36:52]} {[%emt 00:05:56]} Rxb5
{[%clk 00:47:24]} {[%emt 00:00:25]} 23. Bf1 {[%clk 00:34:25]} {[%emt 00:02:42]}
Ra5 {[%clk 00:46:46]} {[%emt 00:00:53]} 24. Rd5 {[%clk 00:32:32]} {[%emt
00:02:08]} Rxd5 {[%clk 00:44:28]} {[%emt 00:02:32]} 25. exd5 {[%clk 00:32:36]}
{[%emt 00:00:11]} Ne5 {[%clk 00:44:33]} {[%emt 00:00:10]} 26. a3 {[%clk
00:30:08]} {[%emt 00:02:43]} Rc8 {[%clk 00:31:32]} {[%emt 00:13:16]} 27. Ra2
{[%clk 00:27:19]} {[%emt 00:03:04]} a5 {[%clk 00:30:32]} {[%emt 00:01:16]} 28.
axb4 {[%clk 00:26:26]} {[%emt 00:01:08]} axb4 {[%clk 00:30:41]} {[%emt
00:00:05]} 29. Kf2 {[%clk 00:25:50]} {[%emt 00:00:51]} Nd7 {[%clk 00:19:39]}
{[%emt 00:11:17]} 30. Bb5 {[%clk 00:23:20]} {[%emt 00:02:45]} Nf6 {[%clk
00:18:39]} {[%emt 00:01:15]} 31. Bc6 {[%clk 00:22:50]} {[%emt 00:00:45]} Bd8
{[%clk 00:18:27]} {[%emt 00:00:27]} 32. Kf3 {[%clk 00:22:34]} {[%emt 00:00:32]}
h5 {[%clk 00:14:12]} {[%emt 00:04:30]} 33. Bd2 {[%clk 00:20:07]} {[%emt
00:02:41]} Nh7 {[%clk 00:10:16]} {[%emt 00:04:11]} 34. Bxb4 {[%clk 00:17:23]}
{[%emt 00:02:59]} Ng5+ {[%clk 00:10:11]} {[%emt 00:00:20]} 35. Kg2 {[%clk
00:16:44]} {[%emt 00:00:54]} Ne4 {[%clk 00:10:12]} {[%emt 00:00:14]} 36. gxh5
{[%clk 00:13:14]} {[%emt 00:03:45]} Bb6 {[%clk 00:09:57]} {[%emt 00:00:29]} 37.
Ra6 {[%clk 00:12:30]} {[%emt 00:00:59]} Bc5 {[%clk 00:08:44]} {[%emt 00:01:28]}
38. Ba5 {[%clk 00:12:02]} {[%emt 00:00:44]} f5 {[%clk 00:06:23]} {[%emt
00:02:36]} 39. b4 {[%clk 00:07:17]} {[%emt 00:05:00]} Be3 {[%clk 00:06:29]}
{[%emt 00:00:08]} 40. b5 {[%clk 00:05:14]} {[%emt 00:02:18]} f4 {[%clk
00:06:20]} {[%emt 00:00:24]} 41. b6 {[%clk 00:03:48]} {[%emt 00:01:42]} Rf8
{[%clk 00:04:59]} {[%emt 00:01:36]} 42. Kf3 {[%clk 00:02:20]} {[%emt 00:01:43]}
Ng5+ {[%clk 00:04:52]} {[%emt 00:00:22]} 43. Ke2 {[%clk 00:02:31]} {[%emt
00:00:05]} Bd4 {[%clk 00:04:41]} {[%emt 00:00:25]} 44. Kd3 {[%clk 00:02:13]}
{[%emt 00:00:33]} f3 {[%clk 00:02:21]} {[%emt 00:02:35]} 45. Kxd4 {[%clk
00:02:14]} {[%emt 00:00:13]} Rf4+ {[%clk 00:02:30]} {[%emt 00:00:06]} 46. Ke3
{[%clk 00:01:20]} {[%emt 00:01:10]} Re4+ {[%clk 00:02:33]} {[%emt 00:00:12]} 47.
Kd2 {[%clk 00:01:20]} {[%emt 00:00:14]} Re2+ {[%clk 00:01:34]} {[%emt
00:01:14]} 48. Kd1 {[%clk 00:01:31]} {[%emt 00:00:04]} Ne4 {[%clk 00:01:11]}
{[%emt 00:00:38]} 49. b7 {[%clk 00:01:16]} {[%emt 00:00:30]} Nf2+ {[%clk
00:01:16]} {[%emt 00:00:10]} 50. Kc1 {[%clk 00:01:30]} {[%emt 00:00:01]} Nd3+
{[%clk 00:01:06]} {[%emt 00:00:25]} 51. cxd3 {[%clk 00:01:39]} {[%emt
00:00:06]} f2 {[%clk 00:01:17]} {[%emt 00:00:04]} 52. b8=Q+ {[%clk 00:01:39]}
{[%emt 00:00:15]} Kh7 {[%clk 00:01:26]} {[%emt 00:00:06]} 53. Qf8 {[%clk
00:01:47]} {[%emt 00:00:06]} 1-0

[Event "BPB Limburg Open 2019 Group A"]
[Site "Maastricht, Netherlands"]
[Date "2019.06.08"]
[Round "2.9"]
[White "Sadzikowski, Daniel"]
[Black "Leenhouts, Koen"]
[Result "1/2-1/2"]
[TimeControl "2h + 15 sec/move"]
[WhiteFideId "1132253"]
[BlackFideId "1008439"]
[WhiteElo "2510"]
[BlackElo "2432"]

1. e4 {[%clk 02:00:21]} {[%emt 00:00:09]} c5 {[%clk 02:00:19]} {[%emt
00:00:13]} 2. Nf3 {[%clk 02:00:29]} {[%emt 00:00:05]} e6 {[%clk 02:00:26]}
{[%emt 00:00:08]} 3. d4 {[%clk 02:00:37]} {[%emt 00:00:06]} cxd4 {[%clk
02:00:33]} {[%emt 00:00:07]} 4. Nxd4 {[%clk 02:00:48]} {[%emt 00:00:06]} Nc6
{[%clk 02:00:30]} {[%emt 00:00:17]} 5. Nc3 {[%clk 02:00:18]} {[%emt 00:00:45]}
Qc7 {[%clk 02:00:37]} {[%emt 00:00:08]} 6. g3 {[%clk 02:00:11]} {[%emt
00:00:23]} a6 {[%clk 01:59:54]} {[%emt 00:00:58]} 7. Bg2 {[%clk 02:00:13]}
{[%emt 00:00:12]} Nf6 {[%clk 01:59:39]} {[%emt 00:00:31]} 8. O-O {[%clk
02:00:08]} {[%emt 00:00:19]} h5 {[%clk 01:57:08]} {[%emt 00:02:46]} 9. Bg5
{[%clk 01:59:19]} {[%emt 00:01:04]} Bc5 {[%clk 01:53:38]} {[%emt 00:03:44]} 10.
Nxc6 {[%clk 01:54:37]} {[%emt 00:04:57]} bxc6 {[%clk 01:52:57]} {[%emt
00:00:56]} 11. Na4 {[%clk 01:54:26]} {[%emt 00:00:26]} Ba7 {[%clk 01:46:40]}
{[%emt 00:06:32]} 12. c4 {[%clk 01:53:29]} {[%emt 00:01:13]} d6 {[%clk
01:35:02]} {[%emt 00:11:53]} 13. Qd2 {[%clk 01:42:41]} {[%emt 00:11:02]} Nd7
{[%clk 01:30:44]} {[%emt 00:04:34]} 14. Rad1 {[%clk 01:37:49]} {[%emt
00:05:07]} f6 {[%clk 01:19:00]} {[%emt 00:11:59]} 15. Be3 {[%clk 01:23:38]}
{[%emt 00:14:26]} Bb8 {[%clk 01:18:13]} {[%emt 00:01:02]} 16. f4 {[%clk
01:20:20]} {[%emt 00:03:33]} h4 {[%clk 01:17:16]} {[%emt 00:01:12]} 17. gxh4
{[%clk 01:19:58]} {[%emt 00:00:37]} Rxh4 {[%clk 01:15:51]} {[%emt 00:01:40]} 18.
Qe1 {[%clk 01:14:54]} {[%emt 00:05:18]} Rh8 {[%clk 01:07:21]} {[%emt 00:08:45]}
19. Rf3 {[%clk 01:12:32]} {[%emt 00:02:37]} Bb7 {[%clk 00:59:40]} {[%emt
00:07:57]} 20. Rg3 {[%clk 01:09:13]} {[%emt 00:03:32]} Rh7 {[%clk 00:57:24]}
{[%emt 00:02:32]} 21. b3 {[%clk 00:58:47]} {[%emt 00:10:42]} c5 {[%clk
00:54:29]} {[%emt 00:03:11]} 22. Qe2 {[%clk 00:56:51]} {[%emt 00:02:10]} Bc6
{[%clk 00:50:54]} {[%emt 00:03:50]} 23. Nc3 {[%clk 00:55:23]} {[%emt 00:01:43]}
Nf8 {[%clk 00:44:50]} {[%emt 00:06:20]} 24. a3 {[%clk 00:40:08]} {[%emt
00:15:30]} Ba7 {[%clk 00:40:07]} {[%emt 00:04:57]} 25. b4 {[%clk 00:35:00]}
{[%emt 00:05:23]} cxb4 {[%clk 00:38:54]} {[%emt 00:01:29]} 26. axb4 {[%clk
00:35:13]} {[%emt 00:00:02]} Rb8 {[%clk 00:38:19]} {[%emt 00:00:49]} 27. b5
{[%clk 00:30:51]} {[%emt 00:04:38]} axb5 {[%clk 00:37:09]} {[%emt 00:01:26]} 28.
cxb5 {[%clk 00:30:58]} {[%emt 00:00:07]} Bd7 {[%clk 00:36:28]} {[%emt
00:00:56]} 29. f5 {[%clk 00:28:59]} {[%emt 00:02:13]} Kf7 {[%clk 00:29:58]}
{[%emt 00:06:45]} 30. Bf1 {[%clk 00:23:01]} {[%emt 00:06:13]} Rc8 {[%clk
00:23:52]} {[%emt 00:06:22]} 31. Rb1 {[%clk 00:18:56]} {[%emt 00:04:19]} Bb8
{[%clk 00:21:59]} {[%emt 00:02:09]} 32. fxe6+ {[%clk 00:15:04]} {[%emt
00:04:07]} Bxe6 {[%clk 00:21:21]} {[%emt 00:00:52]} 33. Nd5 {[%clk 00:15:07]}
{[%emt 00:00:12]} Qb7 {[%clk 00:18:38]} {[%emt 00:02:59]} 34. b6 {[%clk
00:13:22]} {[%emt 00:02:00]} Nd7 {[%clk 00:17:24]} {[%emt 00:01:28]} 35. Bg2
{[%clk 00:09:44]} {[%emt 00:03:52]} Ne5 {[%clk 00:15:00]} {[%emt 00:02:39]} 36.
Bd4 {[%clk 00:07:09]} {[%emt 00:02:50]} 1/2-1/2

[Event "BPB Limburg Open 2019 Group A"]
[Site "Maastricht, Netherlands"]
[Date "2019.06.08"]
[Round "2.10"]
[White "Beerdsen, Thomas"]
[Black "Warmerdam, Max"]
[Result "1-0"]
[TimeControl "2h + 15 sec/move"]
[WhiteFideId "1030108"]
[BlackFideId "1048104"]
[WhiteElo "2488"]
[BlackElo "2475"]

1. e4 {[%clk 02:00:27]} {[%emt 00:00:02]} e5 {[%clk 02:00:24]} {[%emt
00:00:06]} 2. Nf3 {[%clk 02:00:37]} {[%emt 00:00:06]} Nc6 {[%clk 02:00:35]}
{[%emt 00:00:06]} 3. Bc4 {[%clk 02:00:28]} {[%emt 00:00:22]} Bc5 {[%clk
01:58:44]} {[%emt 00:02:06]} 4. c3 {[%clk 01:57:38]} {[%emt 00:03:05]} Nf6
{[%clk 01:58:44]} {[%emt 00:00:16]} 5. d3 {[%clk 01:56:36]} {[%emt 00:01:16]}
d6 {[%clk 01:58:50]} {[%emt 00:00:09]} 6. a4 {[%clk 01:53:50]} {[%emt
00:03:02]} a5 {[%clk 01:58:11]} {[%emt 00:00:54]} 7. Bg5 {[%clk 01:47:14]}
{[%emt 00:06:50]} h6 {[%clk 01:57:24]} {[%emt 00:01:02]} 8. Bh4 {[%clk
01:46:03]} {[%emt 00:01:25]} g5 {[%clk 01:53:53]} {[%emt 00:03:46]} 9. Bg3
{[%clk 01:46:12]} {[%emt 00:00:06]} O-O {[%clk 01:51:34]} {[%emt 00:02:34]} 10.
Nbd2 {[%clk 01:42:52]} {[%emt 00:03:35]} Ba7 {[%clk 01:50:19]} {[%emt
00:01:30]} 11. Qb3 {[%clk 01:39:53]} {[%emt 00:03:14]} Ne7 {[%clk 01:39:33]}
{[%emt 00:11:01]} 12. d4 {[%clk 01:19:36]} {[%emt 00:20:33]} Ng6 {[%clk
01:38:07]} {[%emt 00:01:41]} 13. O-O-O {[%clk 01:05:52]} {[%emt 00:13:59]} Qe7
{[%clk 01:33:42]} {[%emt 00:04:40]} 14. h4 {[%clk 01:04:55]} {[%emt 00:01:12]}
g4 {[%clk 01:15:13]} {[%emt 00:18:44]} 15. h5 {[%clk 01:04:47]} {[%emt
00:00:23]} Nf4 {[%clk 01:14:35]} {[%emt 00:00:54]} 16. Bxf4 {[%clk 00:58:51]}
{[%emt 00:06:11]} exf4 {[%clk 01:14:33]} {[%emt 00:00:17]} 17. Nh4 {[%clk
00:57:45]} {[%emt 00:01:21]} Kg7 {[%clk 01:13:45]} {[%emt 00:01:02]} 18. Rde1
{[%clk 00:55:07]} {[%emt 00:02:53]} c6 {[%clk 00:59:09]} {[%emt 00:14:51]} 19.
e5 {[%clk 00:51:42]} {[%emt 00:03:41]} Nxh5 {[%clk 00:57:53]} {[%emt 00:01:30]}
20. e6 {[%clk 00:46:33]} {[%emt 00:05:24]} fxe6 {[%clk 00:40:30]} {[%emt
00:17:38]} 21. Bxe6 {[%clk 00:45:45]} {[%emt 00:01:03]} Bxe6 {[%clk 00:40:40]}
{[%emt 00:00:05]} 22. Rxe6 {[%clk 00:45:44]} {[%emt 00:00:16]} Qf7 {[%clk
00:40:52]} {[%emt 00:00:03]} 23. Rg6+ {[%clk 00:44:53]} {[%emt 00:01:06]} Kh7
{[%clk 00:40:21]} {[%emt 00:00:46]} 24. Qc2 {[%clk 00:44:58]} {[%emt 00:00:10]}
1-0

[Event "BPB Limburg Open 2019 Group A"]
[Site "Maastricht, Netherlands"]
[Date "2019.06.08"]
[Round "2.11"]
[White "Ernst, Sipke"]
[Black "Harff, Wilfried"]
[Result "1-0"]
[TimeControl "2h + 15 sec/move"]
[WhiteFideId "1004689"]
[BlackFideId "4668685"]
[WhiteElo "2541"]
[BlackElo "2195"]

1. Nf3 {[%clk 01:58:02]} {[%emt 00:02:28]} c5 {[%clk 01:59:59]} {[%emt
00:00:32]} 2. c4 {[%clk 01:58:08]} {[%emt 00:00:09]} Nc6 {[%clk 01:58:16]}
{[%emt 00:01:58]} 3. b3 {[%clk 01:58:18]} {[%emt 00:00:05]} Nf6 {[%clk
01:57:39]} {[%emt 00:00:51]} 4. Bb2 {[%clk 01:58:22]} {[%emt 00:00:12]} e6
{[%clk 01:54:33]} {[%emt 00:03:21]} 5. g3 {[%clk 01:58:28]} {[%emt 00:00:09]}
Be7 {[%clk 01:52:53]} {[%emt 00:01:55]} 6. Bg2 {[%clk 01:58:35]} {[%emt
00:00:08]} O-O {[%clk 01:52:53]} {[%emt 00:00:15]} 7. O-O {[%clk 01:58:42]}
{[%emt 00:00:06]} d6 {[%clk 01:44:52]} {[%emt 00:08:17]} 8. d4 {[%clk
01:57:42]} {[%emt 00:01:14]} cxd4 {[%clk 01:44:16]} {[%emt 00:00:52]} 9. Nxd4
{[%clk 01:57:48]} {[%emt 00:00:08]} Nxd4 {[%clk 01:44:22]} {[%emt 00:00:10]} 10.
Qxd4 {[%clk 01:57:47]} {[%emt 00:00:16]} Qc7 {[%clk 01:44:10]} {[%emt
00:00:28]} 11. Nc3 {[%clk 01:57:23]} {[%emt 00:00:39]} a6 {[%clk 01:42:45]}
{[%emt 00:01:40]} 12. Rfd1 {[%clk 01:54:35]} {[%emt 00:03:02]} Rd8 {[%clk
01:36:29]} {[%emt 00:06:32]} 13. Rac1 {[%clk 01:49:07]} {[%emt 00:05:43]} Bd7
{[%clk 01:32:55]} {[%emt 00:03:48]} 14. h3 {[%clk 01:48:47]} {[%emt 00:00:34]}
Bc6 {[%clk 01:32:31]} {[%emt 00:00:40]} 15. Nd5 {[%clk 01:47:30]} {[%emt
00:01:32]} Bxd5 {[%clk 01:28:32]} {[%emt 00:04:15]} 16. cxd5 {[%clk 01:47:39]}
{[%emt 00:00:06]} Qb8 {[%clk 01:28:42]} {[%emt 00:00:04]} 17. dxe6 {[%clk
01:47:34]} {[%emt 00:00:20]} fxe6 {[%clk 01:28:37]} {[%emt 00:00:20]} 18. h4
{[%clk 01:43:55]} {[%emt 00:03:54]} d5 {[%clk 01:26:09]} {[%emt 00:02:44]} 19.
Bh3 {[%clk 01:43:21]} {[%emt 00:00:49]} Qd6 {[%clk 01:25:53]} {[%emt 00:00:30]}
20. Qe3 {[%clk 01:42:05]} {[%emt 00:01:30]} Ne4 {[%clk 01:24:46]} {[%emt
00:01:22]} 21. Rc4 {[%clk 01:41:06]} {[%emt 00:01:14]} Bf6 {[%clk 00:58:35]}
{[%emt 00:26:26]} 22. Rxe4 {[%clk 01:37:34]} {[%emt 00:03:47]} Bxb2 {[%clk
00:58:15]} {[%emt 00:00:35]} 23. Bxe6+ {[%clk 01:37:30]} {[%emt 00:00:19]} Kh8
{[%clk 00:56:23]} {[%emt 00:02:07]} 24. Rxd5 {[%clk 01:37:38]} {[%emt
00:00:07]} Qf8 {[%clk 00:55:40]} {[%emt 00:00:58]} 25. Bd7 {[%clk 01:36:25]}
{[%emt 00:01:28]} Qf7 {[%clk 00:52:27]} {[%emt 00:03:26]} 26. Qd3 {[%clk
01:36:25]} {[%emt 00:00:16]} Bf6 {[%clk 00:51:38]} {[%emt 00:01:04]} 27. Kg2
{[%clk 01:36:33]} {[%emt 00:00:08]} b5 {[%clk 00:50:30]} {[%emt 00:01:23]} 28.
e3 {[%clk 01:34:31]} {[%emt 00:02:17]} Rab8 {[%clk 00:45:59]} {[%emt 00:04:46]}
29. h5 {[%clk 01:34:05]} {[%emt 00:00:42]} h6 {[%clk 00:44:48]} {[%emt
00:01:25]} 30. a4 {[%clk 01:32:59]} {[%emt 00:01:21]} bxa4 {[%clk 00:41:57]}
{[%emt 00:03:06]} 31. bxa4 {[%clk 01:32:57]} {[%emt 00:00:18]} Rb2 {[%clk
00:40:01]} {[%emt 00:02:11]} 32. Be6 {[%clk 01:33:05]} {[%emt 00:00:07]} Qf8
{[%clk 00:37:35]} {[%emt 00:02:40]} 33. Rxd8 {[%clk 01:33:15]} {[%emt
00:00:06]} Bxd8 {[%clk 00:37:47]} {[%emt 00:00:03]} 34. Rf4 {[%clk 01:33:24]}
{[%emt 00:00:06]} Bf6 {[%clk 00:37:34]} {[%emt 00:00:28]} 35. Qg6 {[%clk
01:32:38]} {[%emt 00:01:00]} Rb6 {[%clk 00:36:24]} {[%emt 00:01:25]} 36. Bf5
{[%clk 01:31:45]} {[%emt 00:01:07]} Qg8 {[%clk 00:35:13]} {[%emt 00:01:27]} 37.
Re4 {[%clk 01:31:52]} {[%emt 00:00:08]} 1-0

[Event "BPB Limburg Open 2019 Group A"]
[Site "Maastricht, Netherlands"]
[Date "2019.06.08"]
[Round "2.12"]
[White "Pham, Khoi"]
[Black "Admiraal, Miguoel"]
[Result "0-1"]
[TimeControl "2h + 15 sec/move"]
[WhiteFideId "1054988"]
[BlackFideId "1019716"]
[WhiteElo "2198"]
[BlackElo "2507"]

1. d4 {[%clk 02:00:28]} e6 {[%clk 01:30:31]} {[%emt 00:29:59]} 2. e4 {[%clk
01:59:28]} {[%emt 00:01:15]} d5 {[%clk 01:29:51]} {[%emt 00:00:55]} 3. Nc3
{[%clk 01:59:34]} {[%emt 00:00:10]} Nf6 {[%clk 01:29:26]} {[%emt 00:00:38]} 4.
e5 {[%clk 01:59:41]} {[%emt 00:00:09]} Ng8 {[%clk 01:29:11]} {[%emt 00:00:30]}
5. f4 {[%clk 01:58:31]} {[%emt 00:01:25]} c5 {[%clk 01:29:22]} {[%emt
00:00:04]} 6. Nf3 {[%clk 01:58:20]} {[%emt 00:00:26]} Nh6 {[%clk 01:28:32]}
{[%emt 00:01:05]} 7. Be3 {[%clk 01:54:02]} {[%emt 00:04:34]} Nf5 {[%clk
01:22:06]} {[%emt 00:06:40]} 8. Bf2 {[%clk 01:51:21]} {[%emt 00:02:57]} cxd4
{[%clk 01:17:29]} {[%emt 00:04:52]} 9. Nxd4 {[%clk 01:50:18]} {[%emt 00:01:18]}
Nxd4 {[%clk 01:17:39]} {[%emt 00:00:05]} 10. Qxd4 {[%clk 01:49:03]} {[%emt
00:01:29]} Nc6 {[%clk 01:17:45]} {[%emt 00:00:10]} 11. Qd2 {[%clk 01:48:46]}
{[%emt 00:00:33]} Bb4 {[%clk 01:17:55]} {[%emt 00:00:05]} 12. a3 {[%clk
01:44:26]} {[%emt 00:04:35]} Ba5 {[%clk 01:18:07]} {[%emt 00:00:03]} 13. b4
{[%clk 01:42:41]} {[%emt 00:02:00]} Bb6 {[%clk 01:17:29]} {[%emt 00:00:51]} 14.
Bd3 {[%clk 01:39:59]} {[%emt 00:02:57]} O-O {[%clk 01:03:35]} {[%emt 00:14:09]}
15. O-O {[%clk 01:37:34]} {[%emt 00:02:41]} f6 {[%clk 01:03:01]} {[%emt
00:00:48]} 16. exf6 {[%clk 01:35:55]} {[%emt 00:01:54]} Rxf6 {[%clk 01:01:13]}
{[%emt 00:02:03]} 17. Na4 {[%clk 01:31:19]} {[%emt 00:04:51]} Bxf2+ {[%clk
01:00:26]} {[%emt 00:01:02]} 18. Qxf2 {[%clk 01:30:51]} {[%emt 00:00:42]} Bd7
{[%clk 00:56:00]} {[%emt 00:04:40]} 19. Rae1 {[%clk 01:16:10]} {[%emt
00:14:57]} Nxb4 {[%clk 00:47:55]} {[%emt 00:08:20]} 20. axb4 {[%clk 01:15:26]}
{[%emt 00:01:00]} Bxa4 {[%clk 00:48:06]} {[%emt 00:00:04]} 21. Qh4 {[%clk
01:13:20]} {[%emt 00:02:20]} Qb6+ {[%clk 00:44:33]} {[%emt 00:03:48]} 22. Kh1
{[%clk 01:13:10]} {[%emt 00:00:25]} Rh6 {[%clk 00:44:40]} {[%emt 00:00:08]} 23.
Qg4 {[%clk 01:12:49]} {[%emt 00:00:36]} Bb5 {[%clk 00:40:09]} {[%emt 00:04:45]}
24. Bxb5 {[%clk 01:08:44]} {[%emt 00:04:21]} Qxb5 {[%clk 00:40:17]} {[%emt
00:00:06]} 25. f5 {[%clk 01:08:47]} {[%emt 00:00:12]} Rf6 {[%clk 00:37:37]}
{[%emt 00:02:54]} 26. Rf4 {[%clk 00:47:25]} {[%emt 00:21:37]} Raf8 {[%clk
00:35:13]} {[%emt 00:02:39]} 27. h3 {[%clk 00:34:47]} {[%emt 00:12:53]} Rxf5
{[%clk 00:30:04]} {[%emt 00:05:24]} 28. Rxf5 {[%clk 00:33:35]} {[%emt
00:01:27]} exf5 {[%clk 00:30:09]} {[%emt 00:00:09]} 29. Qd4 {[%clk 00:32:46]}
{[%emt 00:01:05]} h6 {[%clk 00:20:01]} {[%emt 00:10:23]} 30. Re5 {[%clk
00:29:33]} {[%emt 00:03:28]} f4 {[%clk 00:17:33]} {[%emt 00:02:42]} 31. Re7
{[%clk 00:28:07]} {[%emt 00:01:41]} Rf7 {[%clk 00:17:45]} {[%emt 00:00:03]} 32.
Rxf7 {[%clk 00:28:04]} {[%emt 00:00:18]} Kxf7 {[%clk 00:17:42]} {[%emt
00:00:17]} 33. Qxf4+ {[%clk 00:28:13]} {[%emt 00:00:06]} Kg8 {[%clk 00:17:52]}
{[%emt 00:00:04]} 34. Qf5 {[%clk 00:23:43]} {[%emt 00:04:46]} Qc6 {[%clk
00:17:30]} {[%emt 00:00:37]} 35. Qe5 {[%clk 00:22:08]} {[%emt 00:01:50]} a6
{[%clk 00:16:32]} {[%emt 00:01:13]} 36. Qe7 {[%clk 00:10:20]} {[%emt 00:12:02]}
Qxc2 {[%clk 00:12:15]} {[%emt 00:04:33]} 37. Qe6+ {[%clk 00:07:03]} {[%emt
00:03:32]} Kh7 {[%clk 00:10:55]} {[%emt 00:01:34]} 38. Qxd5 {[%clk 00:07:05]}
{[%emt 00:00:13]} Qb1+ {[%clk 00:10:30]} {[%emt 00:00:41]} 39. Kh2 {[%clk
00:07:08]} {[%emt 00:00:12]} Qxb4 {[%clk 00:10:31]} {[%emt 00:00:14]} 40. Qf5+
{[%clk 00:06:59]} {[%emt 00:00:24]} Kg8 {[%clk 00:10:36]} {[%emt 00:00:09]} 41.
Qe6+ {[%clk 00:06:59]} {[%emt 00:00:16]} Kf8 {[%clk 00:10:47]} {[%emt
00:00:05]} 42. Qc8+ {[%clk 00:06:04]} {[%emt 00:01:10]} Ke7 {[%clk 00:09:55]}
{[%emt 00:01:05]} 43. Qc7+ {[%clk 00:06:13]} {[%emt 00:00:08]} Kf6 {[%clk
00:09:53]} {[%emt 00:00:16]} 44. Kg3 {[%clk 00:03:57]} {[%emt 00:02:32]} Qe7
{[%clk 00:07:48]} {[%emt 00:02:20]} 45. Qf4+ {[%clk 00:04:06]} {[%emt
00:00:06]} Kg6 {[%clk 00:07:58]} {[%emt 00:00:04]} 46. h4 {[%clk 00:03:41]}
{[%emt 00:00:41]} Kh7 {[%clk 00:07:42]} {[%emt 00:00:31]} 47. Kh3 {[%clk
00:02:51]} {[%emt 00:01:05]} Qe6+ {[%clk 00:06:54]} {[%emt 00:01:02]} 48. g4
{[%clk 00:02:32]} {[%emt 00:00:34]} h5 {[%clk 00:06:54]} {[%emt 00:00:14]} 0-1

[ePGN "0.1;DGT LiveChess/2.2.4"]

[Event "BPB Limburg Open 2019 Group A"]
[Site "Maastricht, Netherlands"]
[Date "2019.06.08"]
[Round "3.1"]
[White "Gurevich, Mikhail"]
[Black "Bok, Benjamin"]
[Result "1/2-1/2"]
[TimeControl "2h + 15 sec/move"]
[WhiteFideId "200930"]
[BlackFideId "1017063"]
[WhiteElo "2579"]
[BlackElo "2638"]

1. c4 {[%clk 01:57:01]} {[%emt 00:03:28]} g6 {[%clk 01:58:48]} {[%emt
00:01:43]} 2. Nc3 {[%clk 01:56:53]} {[%emt 00:00:23]} c5 {[%clk 01:58:55]}
{[%emt 00:00:08]} 3. g3 {[%clk 01:54:22]} {[%emt 00:02:46]} Bg7 {[%clk
01:58:47]} {[%emt 00:00:23]} 4. Bg2 {[%clk 01:54:32]} {[%emt 00:00:05]} Nc6
{[%clk 01:58:58]} {[%emt 00:00:04]} 5. a3 {[%clk 01:53:16]} {[%emt 00:01:31]}
e6 {[%clk 01:58:42]} {[%emt 00:00:32]} 6. Rb1 {[%clk 01:49:40]} {[%emt
00:03:51]} Nge7 {[%clk 01:58:46]} {[%emt 00:00:11]} 7. b4 {[%clk 01:49:50]}
{[%emt 00:00:05]} cxb4 {[%clk 01:58:55]} {[%emt 00:00:06]} 8. axb4 {[%clk
01:50:02]} {[%emt 00:00:03]} O-O {[%clk 01:59:02]} {[%emt 00:00:08]} 9. Nf3
{[%clk 01:47:49]} {[%emt 00:02:28]} d5 {[%clk 01:58:34]} {[%emt 00:00:43]} 10.
b5 {[%clk 01:34:28]} {[%emt 00:13:37]} Na5 {[%clk 01:58:23]} {[%emt 00:00:26]}
11. cxd5 {[%clk 01:34:38]} {[%emt 00:00:05]} exd5 {[%clk 01:58:33]} {[%emt
00:00:05]} 12. Ba3 {[%clk 01:34:46]} {[%emt 00:00:07]} Bf5 {[%clk 01:57:15]}
{[%emt 00:01:33]} 13. Rc1 {[%clk 01:28:13]} {[%emt 00:06:48]} d4 {[%clk
01:56:46]} {[%emt 00:00:44]} 14. Na4 {[%clk 01:20:16]} {[%emt 00:08:11]} Re8
{[%clk 01:56:40]} {[%emt 00:00:22]} 15. Nc5 {[%clk 01:15:02]} {[%emt 00:05:29]}
b6 {[%clk 01:45:28]} {[%emt 00:11:28]} 16. Nb3 {[%clk 01:10:51]} {[%emt
00:04:26]} Nxb3 {[%clk 01:43:56]} {[%emt 00:01:46]} 17. Qxb3 {[%clk 01:11:02]}
{[%emt 00:00:05]} Be6 {[%clk 01:43:42]} {[%emt 00:00:29]} 18. Qb1 {[%clk
01:06:59]} {[%emt 00:04:17]} Bd5 {[%clk 01:13:54]} {[%emt 00:30:04]} 19. O-O
{[%clk 01:04:27]} {[%emt 00:02:47]} Nf5 {[%clk 01:11:13]} {[%emt 00:02:56]} 20.
Rfe1 {[%clk 01:03:01]} {[%emt 00:01:40]} Qd7 {[%clk 00:59:24]} {[%emt
00:12:05]} 1/2-1/2